bitfinex-derivatives/quotes_BTCF0:USTF0_20260214
["timestamp","ask_amount","ask_price","bid_price","bid_amount"]
[1771109748530,0.014288,70026.0,70025.0,0.01436]
[1771109748832,0.014288,70025.0,70020.0,0.14288]
[1771109749133,0.014288,70025.0,70021.0,0.01436]
[1771109749324,0.014288,70026.0,70021.0,0.01436]
[1771109750624,0.014289,70022.0,70012.0,0.014291]
[1771109750829,0.10496056,70040.0,70018.0,0.09961592]
[1771109751031,0.014286,70037.0,70031.0,0.014287]
[1771109751229,0.014286,70035.0,70029.0,0.014287]
[1771109751433,0.01436,70034.0,70030.0,0.014287]
[1771109751729,0.00736,70034.0,70030.0,0.014287]
[1771109752334,0.00736,70034.0,70031.0,0.014287]
[1771109752745,0.00736,70034.0,70031.0,0.028574]
[1771109753033,0.00736,70034.0,70031.0,0.014287]
[1771109753529,0.00736,70034.0,70030.0,0.014287]
[1771109753724,0.014285,70039.0,70031.0,0.014287]
[1771109753929,0.01436,70038.0,70033.0,0.014286]
[1771109754131,0.01436,70038.0,70032.0,0.014287]
[1771109754436,0.01436,70038.0,70035.0,0.014286]
[1771109754730,0.01436,70038.0,70033.0,0.014286]
[1771109756428,0.014285,70041.0,70033.0,0.014286]
[1771109756634,0.01436,70040.0,70033.0,0.014286]
[1771109756830,0.028645,70040.0,70033.0,0.014286]
[1771109758331,0.028645,70040.0,70034.0,0.014286]
[1771109758538,0.014285,70039.0,70033.0,0.014286]
[1771109760932,0.028645,70040.0,70034.0,0.014286]
[1771109761528,0.01436,70040.0,70037.0,0.014285]
[1771109761725,0.01436,70040.0,70036.0,0.014286]
[1771109762532,0.01436,70040.0,70037.0,0.014285]
[1771109763737,0.01436,70040.0,70038.0,0.014285]
[1771109764033,0.10700141,70043.0,70039.0,0.014285]
[1771109764234,0.01436,70042.0,70039.0,0.014285]
[1771109764437,0.01436,70042.0,70037.0,0.014285]
[1771109765242,0.01436,70042.0,70039.0,0.014285]
[1771109765538,0.01436,70042.0,70038.0,0.014285]
[1771109765738,0.01436,70042.0,70040.0,0.014285]
[1771109766238,0.014284,70046.0,70040.0,0.014285]
[1771109766437,0.01436,70045.0,70040.0,0.02857]
[1771109766942,0.01436,70045.0,70041.0,0.014285]
[1771109767940,0.028644,70045.0,70041.0,0.014285]
[1771109768436,0.01436,70045.0,70041.0,0.014285]
[1771109769842,0.01436,70045.0,70040.0,0.014285]
[1771109770640,0.028644,70045.0,70040.0,0.014285]
[1771109770830,0.028584,70045.0,70041.0,0.014285]
[1771109772643,0.0143,70045.0,70042.0,0.014284]
[1771109772938,0.014284,70046.0,70042.0,0.014284]
[1771109773242,0.01436,70046.0,70044.0,0.014284]
[1771109774242,0.014283,70049.0,70044.0,0.014284]
[1771109774434,0.028643,70048.0,70043.0,0.014284]
[1771109774743,0.01436,70049.0,70045.0,0.014284]
[1771109774930,0.01436,70049.0,70046.0,0.014284]
[1771109775135,0.028643,70050.0,70046.0,0.014284]
[1771109775432,0.014283,70050.0,70046.0,0.014284]
[1771109775634,0.014283,70049.0,70045.0,0.014284]
[1771109776032,0.014283,70049.0,70044.0,0.014284]
[1771109777254,0.00917438,70050.0,70044.0,0.014284]
[1771109777738,0.014283,70049.0,70043.0,0.014284]
[1771109778442,0.014283,70048.0,70042.0,0.014284]
[1771109778643,0.014283,70049.0,70043.0,0.014284]
[1771109779042,0.014283,70049.0,70044.0,0.014284]
[1771109779245,0.014283,70049.0,70043.0,0.014284]
[1771109779643,0.014283,70049.0,70042.0,0.014284]
[1771109779847,0.014283,70049.0,70043.0,0.028644]
[1771109781646,0.01436,70050.0,70045.0,0.014284]
[1771109783348,0.014283,70051.0,70045.0,0.014284]
[1771109783549,0.01436,70050.0,70045.0,0.014284]
[1771109785240,0.01436,70050.0,70046.0,0.014284]
[1771109787046,0.014282,70054.0,70046.0,0.014284]
[1771109787251,0.01436,70053.0,70046.0,0.014284]
[1771109788856,0.014283,70051.0,70046.0,0.014284]
[1771109789054,0.028643,70052.0,70046.0,0.014284]
[1771109789555,0.01436,70052.0,70048.0,0.014283]
[1771109790943,0.01436,70052.0,70047.0,0.014283]
[1771109791345,0.014282,70053.0,70048.0,0.014283]
[1771109791656,0.01436,70051.0,70048.0,0.014283]
[1771109791847,0.01436,70051.0,70043.0,0.13081844]
[1771109792048,0.01436,70051.0,70048.0,0.014283]
[1771109792447,0.01436,70051.0,70049.0,0.014283]
[1771109792945,0.01436,70053.0,70049.0,0.014283]
[1771109794154,0.01436,70053.0,70048.0,0.014283]
[1771109794459,0.01436,70053.0,70048.0,0.028566]
[1771109794754,0.01436,70053.0,70049.0,0.014283]
[1771109795156,0.01436,70053.0,70046.0,0.028643]
[1771109795458,0.01436,70053.0,70048.0,0.014283]
[1771109795654,0.028642,70053.0,70047.0,0.014283]
[1771109796154,0.014283,70048.0,70046.0,0.01436]
[1771109796348,0.014283,70048.0,70042.0,0.014284]
[1771109796551,0.014283,70049.0,70043.0,0.028644]
[1771109797657,0.14288,70058.0,70046.0,0.014284]
[1771109797852,0.014282,70053.0,70047.0,0.014283]
[1771109798053,0.028642,70053.0,70047.0,0.014283]
[1771109799759,0.028642,70053.0,70047.0,0.028566]
[1771109800262,0.028642,70053.0,70047.0,0.014283]
[1771109801567,0.01436,70053.0,70030.0,0.10491155]
[1771109801749,0.10976239,70049.0,70039.0,0.014285]
[1771109801950,0.014284,70046.0,70040.0,0.028645]
[1771109802155,0.014284,70044.0,70040.0,0.01436]
[1771109802662,0.014284,70045.0,70040.0,0.01436]
[1771109803061,0.11825377,70044.0,70040.0,0.01436]
[1771109803563,0.10396977,70044.0,70039.0,0.028645]
[1771109805561,0.014284,70044.0,70039.0,0.01432]
[1771109805762,0.014284,70045.0,70039.0,0.028605]
[1771109808362,0.014284,70044.0,70039.0,0.01432]
[1771109809368,0.014284,70045.0,70039.0,0.01432]
[1771109809668,0.028568,70045.0,70039.0,0.01432]
[1771109809961,0.014286,70037.0,70029.0,0.014287]
[1771109810167,0.014285,70039.0,70032.0,0.01432]
[1771109810361,0.02857,70039.0,70032.0,0.028606]
[1771109810761,0.014285,70039.0,70033.0,0.014286]
[1771109811266,0.014285,70039.0,70033.0,0.12907877]
[1771109811465,0.014285,70039.0,70033.0,0.11479277]
[1771109820281,0.014285,70038.0,70033.0,0.10050677]
[1771109821080,0.014285,70038.0,70032.0,0.028606]
[1771109821380,0.014285,70040.0,70033.0,0.014286]
[1771109821381,0.014285,70039.0,70033.0,0.014286]
[1771109821579,0.014285,70038.0,70032.0,0.028607]
[1771109822381,0.014286,70037.0,70032.0,0.01432]
[1771109822576,0.014286,70037.0,70032.0,0.028607]
[1771109824174,0.014285,70038.0,70032.0,0.028607]
[1771109824882,0.014286,70037.0,70032.0,0.01432]
[1771109825783,0.014285,70038.0,70032.0,0.028607]
[1771109829383,0.014286,70037.0,70032.0,0.01432]
[1771109829984,0.014285,70038.0,70032.0,0.028607]
[1771109831882,0.014285,70038.0,70032.0,0.042893]
[1771109832086,0.014285,70038.0,70032.0,0.028606]
[1771109834193,0.014285,70039.0,70032.0,0.028606]
[1771109835493,0.014285,70039.0,70032.0,0.01432]
[1771109835693,0.014285,70038.0,70032.0,0.028607]
[1771109838996,0.014285,70038.0,70032.0,0.042893]
[1771109839499,0.014285,70038.0,70032.0,0.028606]
[1771109840699,0.014285,70040.0,70033.0,0.014286]
[1771109841093,0.014285,70039.0,70033.0,0.014286]
[1771109844099,0.09412472,70056.0,70044.0,0.014284]
[1771109844406,0.01432,70048.0,70044.0,0.014284]
[1771109844596,0.01432,70052.0,70050.0,0.014283]
[1771109844804,0.014282,70056.0,70050.0,0.014283]
[1771109845098,0.11384296,70057.0,70052.0,0.014282]
[1771109845306,0.01432,70056.0,70048.0,0.014283]
[1771109845603,0.01432,70056.0,70052.0,0.014282]
[1771109845803,0.014281,70057.0,70052.0,0.014282]
[1771109846003,0.01432,70055.0,70051.0,0.014282]
[1771109846506,0.01432,70055.0,70050.0,0.014283]
[1771109846701,0.01432,70055.0,70051.0,0.014283]
[1771109847305,0.01432,70055.0,70050.0,0.014283]
[1771109847493,0.01432,70055.0,70051.0,0.014282]
[1771109847697,0.01432,70055.0,70052.0,0.014282]
[1771109848208,0.01432,70055.0,70049.0,0.014283]
[1771109848508,0.01432,70055.0,70053.0,0.014282]
[1771109848806,0.00039998,70054.0,70049.0,0.014283]
[1771109849202,0.00039998,70054.0,70052.0,0.014282]
[1771109849607,0.014281,70057.0,70052.0,0.014282]
[1771109849805,0.01432,70056.0,70052.0,0.014282]
[1771109850008,0.01432,70056.0,70051.0,0.014283]
[1771109850504,0.014281,70057.0,70052.0,0.014282]
[1771109850705,0.01432,70055.0,70052.0,0.014282]
[1771109850900,0.01432,70055.0,70051.0,0.014283]
[1771109851508,0.028602,70055.0,70051.0,0.014283]
[1771109853510,0.014282,70054.0,70049.0,0.014283]
[1771109856713,0.014282,70054.0,70048.0,0.014283]
[1771109857211,0.014282,70053.0,70048.0,0.014283]
[1771109859003,0.014282,70053.0,70047.0,0.014283]
[1771109859609,0.01432,70055.0,70048.0,0.014283]
[1771109860012,0.028602,70055.0,70049.0,0.014283]
[1771109860609,0.042884,70055.0,70049.0,0.014283]
[1771109860809,0.042824,70055.0,70049.0,0.014283]
[1771109861012,0.014283,70050.0,70046.0,0.228555]
[1771109861215,0.028566,70050.0,70047.0,0.2428]
[1771109861714,0.014283,70050.0,70047.0,0.2428]
[1771109862116,0.028566,70050.0,70047.0,0.2428]
[1771109862316,0.014283,70049.0,70047.0,0.2428]
[1771109862805,0.014283,70050.0,70048.0,0.214235]
[1771109866521,0.014283,70051.0,70048.0,0.214235]
[1771109867320,0.014283,70049.0,70048.0,0.214235]
[1771109869416,0.011283,70049.0,70048.0,0.214235]
[1771109869822,0.014283,70052.0,70048.0,0.214235]
[1771109870017,0.01432,70054.0,70048.0,0.214235]
[1771109870524,0.028564,70053.0,70048.0,0.228518]
[1771109870723,0.014282,70053.0,70048.0,0.228518]
[1771109871325,0.028564,70053.0,70048.0,0.228518]
[1771109871527,0.014282,70053.0,70048.0,0.228518]
[1771109872926,0.01432,70054.0,70048.0,0.228518]
[1771109873124,0.014282,70053.0,70048.0,0.228518]
[1771109874528,0.014282,70052.0,70048.0,0.228518]
[1771109875622,0.014282,70052.0,70049.0,0.214235]
[1771109879532,0.014283,70051.0,70049.0,0.214235]
[1771109879719,0.014283,70047.0,70032.0,0.09297564]
[1771109879926,0.014284,70043.0,70034.0,0.10726164]
[1771109880126,0.014285,70040.0,70035.0,0.014286]
[1771109880328,0.014285,70040.0,70036.0,0.12158164]
[1771109880525,0.014285,70040.0,70036.0,0.10729564]
[1771109881030,0.014285,70039.0,70036.0,0.10729564]
[1771109881725,0.01432,70046.0,70037.0,0.09297564]
[1771109881925,0.014285,70040.0,70037.0,0.09297564]
[1771109882329,0.014286,70037.0,70036.0,0.01432]
[1771109882638,0.01432,70037.0,70018.0,0.09433564]
[1771109882935,0.014288,70024.0,70020.0,0.09297564]
[1771109883431,0.014288,70026.0,70020.0,0.09297564]
[1771109883632,0.014288,70024.0,70020.0,0.09297564]
[1771109884032,0.014288,70024.0,70020.0,0.09397564]
[1771109884233,0.014287,70032.0,70020.0,0.09397564]
[1771109884434,0.014288,70024.0,70020.0,0.09397564]
[1771109884831,0.014287,70029.0,70020.0,0.09397564]
[1771109885027,0.014288,70025.0,70020.0,0.09397564]
[1771109885836,0.014288,70024.0,70020.0,0.09397564]
[1771109886338,0.014288,70024.0,70020.0,0.09297564]
[1771109887337,0.014288,70024.0,70020.0,0.09397564]
[1771109889536,0.028576,70026.0,70020.0,0.09397564]
[1771109889730,0.014288,70026.0,70020.0,0.09397564]
[1771109889932,0.014288,70025.0,70020.0,0.09397564]
[1771109890736,0.014288,70026.0,70020.0,0.10726464]
[1771109892838,0.014288,70025.0,70020.0,0.09297564]
[1771109893033,0.014288,70024.0,70020.0,0.09297564]
[1771109893241,0.014288,70025.0,70020.0,0.09297564]
[1771109893932,0.014288,70025.0,70020.0,0.10726464]
[1771109894133,0.014288,70026.0,70020.0,0.10726464]
[1771109896940,0.014288,70025.0,70020.0,0.10726464]
[1771109899642,0.014288,70024.0,70020.0,0.10726464]
[1771109901343,0.014288,70024.0,70020.0,0.09297564]
[1771109901745,0.014288,70024.0,70020.0,0.10726464]
[1771109902342,0.014288,70024.0,70020.0,0.09297564]
[1771109902841,0.014288,70024.0,70020.0,0.10726464]
[1771109904947,0.014288,70024.0,70020.0,0.09297564]
[1771109907345,0.014289,70022.0,70019.0,0.1572]
[1771109907646,0.014289,70020.0,70019.0,0.1572]
[1771109908540,0.014289,70019.0,70017.0,0.0977104]
[1771109908742,0.01432,70030.0,70015.0,0.14288]
[1771109908944,0.01429,70015.0,70014.0,0.14288]
[1771109909148,0.014289,70022.0,70014.0,0.2405904]
[1771109909347,0.014289,70022.0,70014.0,0.14288]
[1771109909549,0.01429,70013.0,70011.0,0.14288]
[1771109909744,0.014291,70010.0,70008.0,0.14288]
[1771109910047,0.014291,70009.0,70008.0,0.14288]
[1771109910950,0.014291,70009.0,70008.0,0.1572]
[1771109911545,0.014291,70010.0,70008.0,0.1572]
[1771109912339,0.014291,70009.0,70008.0,0.1572]
[1771109912746,0.014291,70010.0,70008.0,0.1572]
[1771109913147,0.014291,70009.0,70008.0,0.1572]
[1771109913746,0.014292,70006.0,70002.0,0.14292]
[1771109913948,0.014292,70006.0,70003.0,0.01432]
[1771109914548,0.014292,70005.0,70003.0,0.01432]
[1771109915853,0.014292,70006.0,70003.0,0.01432]
[1771109916052,0.014292,70005.0,70003.0,0.01432]
[1771109917558,0.014292,70004.0,70003.0,0.01432]
[1771109920457,0.014293,70000.0,69994.0,0.14292]
[1771109920652,0.014293,70000.0,69996.0,0.01432]
[1771109920858,0.014293,69999.0,69996.0,0.01432]
[1771109921458,0.014293,70000.0,69996.0,0.01432]
[1771109922258,0.014293,69999.0,69996.0,0.01432]
[1771109924163,0.014293,70000.0,69996.0,0.01432]
[1771109924768,0.085737,69997.0,69990.0,0.157215]
[1771109925060,0.014294,69997.0,69991.0,0.01432]
[1771109925260,0.100031,69996.0,69991.0,0.01432]
[1771109925661,0.085737,69995.0,69991.0,0.01432]
[1771109926060,0.014293,69999.0,69991.0,0.028615]
[1771109926061,0.085737,69994.0,69991.0,0.028615]
[1771109926264,0.028588,69997.0,69991.0,0.028615]
[1771109926463,0.100031,69996.0,69991.0,0.028615]
[1771109926665,0.100031,69996.0,69991.0,0.01432]
[1771109926962,0.085737,69995.0,69991.0,0.01432]
[1771109927367,0.085737,69994.0,69991.0,0.01432]
[1771109927568,0.085737,69995.0,69991.0,0.01432]
[1771109927773,0.085737,69995.0,69991.0,0.028615]
[1771109928074,0.085737,69994.0,69991.0,0.028615]
[1771109928269,0.014294,69995.0,69991.0,0.01432]
[1771109928472,0.100032,69992.0,69991.0,0.01432]
[1771109928678,0.014295,69992.0,69991.0,0.01432]
[1771109928873,0.085737,69992.0,69991.0,0.01432]
[1771109929573,0.014295,69991.0,69988.0,0.01432]
[1771109929764,0.085737,69989.0,69987.0,0.01432]
[1771109929965,0.085737,69986.0,69984.0,0.014296]
[1771109930171,0.0144557,69985.0,69984.0,0.01432]
[1771109930478,0.0858967,69985.0,69979.0,0.014297]
[1771109930673,0.09477741,69984.0,69960.0,0.09717732]
[1771109930975,0.014298,69977.0,69970.0,0.171579]
[1771109931271,0.014298,69977.0,69971.0,0.01432]
[1771109931477,0.085737,69976.0,69971.0,0.01432]
[1771109931680,0.085737,69975.0,69971.0,0.01432]
[1771109931979,0.085737,69976.0,69971.0,0.028619]
[1771109932175,0.01432,69976.0,69971.0,0.014299]
[1771109932475,0.01432,69976.0,69972.0,0.014299]
[1771109932476,0.085737,69975.0,69972.0,0.014299]
[1771109932979,0.085737,69973.0,69971.0,0.014299]
[1771109933180,0.085737,69975.0,69972.0,0.014299]
[1771109933581,0.085737,69973.0,69972.0,0.014299]
[1771109933778,0.09477741,70010.0,69989.0,0.09717732]
[1771109933975,0.014293,70001.0,69995.0,0.014294]
[1771109934185,0.01432,70000.0,69995.0,0.014294]
[1771109934483,0.14296,70003.0,69996.0,0.014294]
[1771109934882,0.01432,70002.0,69996.0,0.014294]
[1771109935078,0.14296,70003.0,69996.0,0.014294]
[1771109935079,0.01432,70001.0,69996.0,0.014294]
[1771109935279,0.14296,70014.0,70008.0,0.014291]
[1771109935482,0.14296,70017.0,70011.0,0.014291]
[1771109935679,0.01432,70016.0,70012.0,0.01429]
[1771109935978,0.09477741,70023.0,70012.0,0.01429]
[1771109935979,0.14296,70024.0,70019.0,0.014289]
[1771109936185,0.014288,70026.0,70017.0,0.014289]
[1771109936385,0.01432,70027.0,70026.0,0.014288]
[1771109937085,0.14296,70032.0,70028.0,0.014287]
[1771109937286,0.01432,70031.0,70028.0,0.014287]
[1771109937484,0.09477741,70038.0,70028.0,0.014287]
[1771109937777,0.171566,70037.0,70030.0,0.014287]
[1771109938078,0.171566,70037.0,70032.0,0.014286]
[1771109938079,0.014286,70037.0,70032.0,0.014286]
[1771109938280,0.01432,70036.0,70031.0,0.014287]
[1771109938485,0.01432,70036.0,70032.0,0.014287]
[1771109938985,0.01432,70035.0,70031.0,0.014287]
[1771109939383,0.01432,70035.0,70026.0,0.014288]
[1771109939585,0.01432,70035.0,70030.0,0.014287]
[1771109939887,0.01432,70035.0,70032.0,0.014286]
[1771109940285,0.01432,70034.0,70031.0,0.014287]
[1771109940881,0.01432,70034.0,70030.0,0.014287]
[1771109941678,0.14292,70057.0,70042.0,0.09717732]
[1771109941884,0.23769741,70068.0,70054.0,0.014282]
[1771109942082,0.23769741,70068.0,70034.0,0.714327]
[1771109942083,0.014288,70027.0,70023.0,0.16325983]
[1771109942376,0.014288,70027.0,70012.0,0.14292]
[1771109942377,0.09477741,70015.0,69998.0,0.014293]
[1771109942581,0.09477741,70015.0,69994.0,0.00136]
[1771109942582,0.09477741,70005.0,69994.0,0.00136]
[1771109942786,0.014291,70011.0,69999.0,0.014293]
[1771109942987,0.014288,70027.0,70004.0,0.09717732]
[1771109943283,0.171568,70026.0,70014.0,0.01429]
[1771109943477,0.01436,70025.0,70016.0,0.01429]
[1771109943677,0.01436,70028.0,70026.0,0.014288]
[1771109943881,0.01436,70030.0,70028.0,0.014287]
[1771109944283,0.01436,70033.0,70027.0,0.014288]
[1771109945287,0.00836,70033.0,70027.0,0.014288]
[1771109945588,0.00236,70033.0,70027.0,0.014288]
[1771109946186,0.00236,70033.0,70027.0,0.014287]
[1771109946392,0.00236,70033.0,70030.0,0.014287]
[1771109947682,0.00236,70033.0,70031.0,0.014287]
[1771109947981,0.01436,70035.0,70031.0,0.014287]
[1771109948181,0.028646,70036.0,70030.0,0.014287]
[1771109948790,0.028646,70036.0,70029.0,0.014287]
[1771109949294,0.028646,70036.0,70030.0,0.014287]
[1771109949993,0.09477741,70015.0,69992.0,0.014295]
[1771109950190,0.014292,70007.0,69999.0,0.014293]
[1771109950385,0.014292,70005.0,69998.0,0.014293]
[1771109950590,0.171572,70006.0,70000.0,0.014293]
[1771109951089,0.15728,70006.0,70002.0,0.014293]
[1771109951292,0.01436,70007.0,70004.0,0.014292]
[1771109951498,0.01436,70008.0,70004.0,0.014292]
[1771109953390,0.014291,70010.0,70004.0,0.014292]
[1771109954397,0.014291,70009.0,70004.0,0.014292]
[1771109956602,0.014289,70023.0,70017.0,0.01429]
[1771109956792,0.14292,70031.0,70026.0,0.014288]
[1771109957098,0.01436,70030.0,70026.0,0.014288]
[1771109957297,0.028647,70030.0,70024.0,0.014288]
[1771109957599,0.01436,70030.0,70019.0,0.014289]
[1771109957794,0.014288,70023.0,70019.0,0.014289]
[1771109957995,0.014288,70023.0,70014.0,0.01429]
[1771109957996,0.01429,70017.0,70012.0,0.01436]
[1771109958196,0.014292,70004.0,69999.0,0.01436]
[1771109958395,0.014292,70004.0,69999.0,0.028653]
[1771109958591,0.014292,70004.0,69995.0,0.14292]
[1771109958592,0.10782783,70003.0,69995.0,0.14292]
[1771109958791,0.10782783,70000.0,69991.0,0.014295]
[1771109958994,0.014291,70011.0,69992.0,0.10111635]
[1771109959301,0.15728,70010.0,70003.0,0.014292]
[1771109959499,0.15728,70010.0,70004.0,0.014292]
[1771109959695,0.15728,70010.0,70005.0,0.014292]
[1771109959902,0.014289,70020.0,70007.0,0.014291]
[1771109960096,0.01429,70013.0,70007.0,0.014292]
[1771109963604,0.01429,70013.0,70006.0,0.014292]
[1771109963800,0.01436,70014.0,70010.0,0.014291]
[1771109964598,0.02865,70014.0,70010.0,0.014291]
[1771109964795,0.02865,70014.0,70009.0,0.014291]
[1771109965000,0.01436,70014.0,70011.0,0.014291]
[1771109965402,0.01436,70014.0,70010.0,0.014291]
[1771109968301,0.01429,70016.0,70010.0,0.014291]
[1771109968504,0.01436,70015.0,70010.0,0.014291]
[1771109968808,0.02865,70015.0,70010.0,0.014291]
[1771109969306,0.01436,70015.0,70011.0,0.014291]
[1771109969508,0.01436,70015.0,70009.0,0.014291]
[1771109969705,0.11046696,70034.0,70014.0,0.10640961]
[1771109969903,0.11046696,70034.0,70009.0,0.01436]
[1771109969904,0.01436,70034.0,70032.0,0.014287]
[1771109970098,0.01436,70034.0,70018.0,0.014289]
[1771109970099,0.014289,70020.0,70019.0,0.14292]
[1771109970307,0.014289,70018.0,70015.0,0.01436]
[1771109970498,0.01429,70016.0,70015.0,0.01436]
[1771109970901,0.01429,70016.0,70008.0,0.014291]
[1771109970902,0.11046696,70018.0,69993.0,0.10640961]
[1771109971213,0.014294,69995.0,69987.0,0.028696]
[1771109971402,0.014294,69994.0,69988.0,0.014295]
[1771109971901,0.0144,69997.0,69995.0,0.014294]
[1771109972100,0.014291,70010.0,70003.0,0.014292]
[1771109972306,0.014291,70009.0,70003.0,0.014292]
[1771109972805,0.01429,70018.0,70004.0,0.0144]
[1771109973010,0.01429,70016.0,70008.0,0.014291]
[1771109973311,0.01429,70016.0,70009.0,0.014291]
[1771109973312,0.0144,70015.0,70009.0,0.014291]
[1771109973504,0.0144,70015.0,70008.0,0.014291]
[1771109973702,0.014289,70020.0,70013.0,0.01429]
[1771109973901,0.0144,70019.0,70013.0,0.01429]
[1771109974103,0.014289,70020.0,70014.0,0.01429]
[1771109974308,0.0144,70019.0,70014.0,0.01429]
[1771109975910,0.028689,70020.0,70014.0,0.01429]
[1771109976704,0.5718,70047.0,70011.0,0.028691]
[1771109976705,0.014287,70031.0,70022.0,0.014289]
[1771109977009,0.014287,70029.0,70023.0,0.014288]
[1771109977211,0.028687,70028.0,70023.0,0.014288]
[1771109977813,0.028687,70028.0,70021.0,0.014289]
[1771109978414,0.014288,70026.0,70021.0,0.014289]
[1771109978611,0.014293,70003.0,69998.0,0.014293]
[1771109978908,0.014294,69994.0,69991.0,0.0144]
[1771109979113,0.014294,69994.0,69988.0,0.14292]
[1771109979114,0.014294,69995.0,69992.0,0.0144]
[1771109979610,0.014294,69996.0,69992.0,0.0144]
[1771109979808,0.014294,69995.0,69991.0,0.014295]
[1771109980414,0.014294,69994.0,69990.0,0.0144]
[1771109980915,0.0144,69997.0,69990.0,0.0144]
[1771109981109,0.014294,69995.0,69990.0,0.028695]
[1771109981611,0.014294,69996.0,69990.0,0.028695]
[1771109982904,0.014294,69995.0,69990.0,0.0144]
[1771109983103,0.014294,69995.0,69988.0,0.014296]
[1771109984115,0.014294,69994.0,69988.0,0.014296]
[1771109984416,0.014295,69993.0,69988.0,0.014296]
[1771109985814,0.014294,69994.0,69988.0,0.014296]
[1771109986319,0.014295,69993.0,69988.0,0.014296]
[1771109986709,0.014294,69994.0,69988.0,0.014296]
[1771109987216,0.0144,69993.0,69988.0,0.014296]
[1771109988020,0.0144,69993.0,69989.0,0.014295]
[1771109988217,0.0144,69993.0,69992.0,0.014295]
[1771109988706,0.0144,69994.0,69992.0,0.014295]
[1771109989216,0.0144,69994.0,69993.0,0.014294]
[1771109990019,0.0144,69994.0,69991.0,0.014295]
[1771109990519,0.0144,69994.0,69990.0,0.014295]
[1771109992515,0.014293,70002.0,69995.0,0.014294]
[1771109992714,0.014292,70005.0,69998.0,0.014293]
[1771109992908,0.014293,70002.0,69996.0,0.014294]
[1771109993515,0.014293,70001.0,69996.0,0.014294]
[1771109993716,0.014293,70001.0,69997.0,0.014294]
[1771109994513,0.014293,70001.0,69996.0,0.014294]
[1771109996525,0.014293,70001.0,69997.0,0.014294]
[1771109996723,0.014293,70002.0,69997.0,0.014294]
[1771109998024,0.014293,70001.0,69997.0,0.014294]
[1771109998420,0.014293,70001.0,69996.0,0.014294]
[1771109998618,0.014293,70001.0,69996.0,0.028588]
[1771109998820,0.014293,70001.0,69997.0,0.014294]
[1771109999028,0.014293,70001.0,69996.0,0.014294]
[1771109999836,0.014293,70000.0,69996.0,0.014294]
[1771110000035,0.014293,69999.0,69990.0,0.014295]
[1771110000235,0.014294,69995.0,69991.0,0.014295]
[1771110000733,0.014294,69995.0,69981.0,0.014297]
[1771110000734,0.028592,69985.0,69981.0,0.0144]
[1771110001033,0.014296,69984.0,69981.0,0.0144]
[1771110001230,0.028592,69985.0,69981.0,0.0144]
[1771110001426,0.07237411,69985.0,69976.0,0.14296]
[1771110001632,0.07237611,69978.0,69970.0,0.014299]
[1771110001827,0.07237611,69978.0,69968.0,0.14296]
[1771110001828,0.05807811,69976.0,69968.0,0.15736]
[1771110002032,0.014298,69976.0,69969.0,0.014299]
[1771110002238,0.014298,69976.0,69970.0,0.014299]
[1771110002432,0.0144,69977.0,69970.0,0.014299]
[1771110002737,0.00010258,69976.0,69973.0,0.014299]
[1771110005336,0.00010258,69976.0,69975.0,0.014298]
[1771110005534,0.14296,69984.0,69983.0,0.014297]
[1771110005842,0.0144,69984.0,69981.0,0.014297]
[1771110006645,7.001e-05,69983.0,69981.0,0.014297]
[1771110008940,7.001e-05,69983.0,69980.0,0.014297]
[1771110009640,7.001e-05,69983.0,69979.0,0.014297]
[1771110010243,7.001e-05,69983.0,69981.0,0.014297]
[1771110011437,7.001e-05,69983.0,69982.0,0.014297]
[1771110011639,7.001e-05,69983.0,69981.0,0.014297]
[1771110012840,0.01397817,69984.0,69981.0,0.014297]
[1771110013342,0.01397817,69984.0,69982.0,0.014297]
[1771110016140,0.01397817,69984.0,69970.0,0.014299]
[1771110016141,0.0144,69996.0,69993.0,0.014294]
[1771110016347,0.0144,69995.0,69994.0,0.014294]
[1771110017033,0.00280998,69995.0,69994.0,0.014294]
[1771110018141,0.00280998,69995.0,69993.0,0.014294]
[1771110018947,0.00280998,69995.0,69994.0,0.014294]
[1771110020046,0.014293,70000.0,69995.0,0.014294]
[1771110020248,0.0144,69999.0,69995.0,0.014294]
[1771110020548,0.014294,69998.0,69993.0,0.014294]
[1771110020747,0.014294,69998.0,69994.0,0.014294]
[1771110021650,0.014294,69997.0,69992.0,0.014295]
[1771110021850,0.014294,69997.0,69993.0,0.014294]
[1771110022351,0.028693,69999.0,69993.0,0.014294]
[1771110022548,0.014294,69997.0,69993.0,0.01447037]
[1771110022858,0.0144,69996.0,69993.0,0.01447037]
[1771110023752,0.028694,69996.0,69993.0,0.01447037]
[1771110023949,0.0144,69996.0,69993.0,0.02876437]
[1771110024451,0.0144,69996.0,69993.0,0.01447037]
[1771110024651,0.028694,69996.0,69993.0,0.01447037]
[1771110025052,0.0144,69996.0,69993.0,0.01447037]
[1771110025453,0.028694,69996.0,69991.0,0.014295]
[1771110025647,0.028694,69996.0,69993.0,0.01447037]
[1771110026053,0.014294,69995.0,69993.0,0.01447037]
[1771110026657,0.0144,69996.0,69994.0,0.014294]
[1771110028656,0.157293,70001.0,69993.0,0.01447037]
[1771110028657,0.157293,70001.0,69997.0,0.014294]
[1771110029555,0.0144,70000.0,69996.0,0.014294]
[1771110029855,0.0144,70000.0,69997.0,0.014294]
[1771110031451,0.0144,69999.0,69997.0,0.014294]
[1771110031756,0.0144,69999.0,69997.0,0.028588]
[1771110032451,0.0144,69999.0,69997.0,0.014294]
[1771110032645,0.0144,70000.0,69999.0,0.014293]
[1771110032848,0.157252,70005.0,70000.0,0.014293]